fUSD/lending_fUSD_20251128
["ID","MTS","AMOUNT","RATE_DAILY","PERIOD"]
[395006523,1764313845190,-160.37359926,0.00021276,2]
[395006524,1764313845199,-300.0,0.00021303,2]
[395006525,1764313845208,-300.0,0.00021309,2]
[395006526,1764313845217,-300.0,0.00021321,2]
[395006527,1764313845226,-464.0,0.00021342,2]
[395006528,1764313845235,-300.0,0.00021425,2]
[395006529,1764313845244,-1400.0,0.00021452,7]
[395006530,1764313845253,-300.0,0.00021457,2]
[395006531,1764313845262,-300.0,0.00021476,2]
[395006532,1764313845271,-168.0,0.00021506,2]
[395006533,1764313845280,-1000.0,0.00021521,2]
[395006534,1764313845289,-168.0,0.00021541,2]
[395006535,1764313845298,-166.66,0.00021631,2]
[395006536,1764313845307,-300.0,0.00021652,2]
[395006537,1764313845317,-300.0,0.00021654,2]
[395006538,1764313845326,-300.0,0.00021659,2]
[395006539,1764313845335,-300.0,0.00021669,2]
[395006540,1764313845348,-300.0,0.0002167,2]
[395006541,1764313845357,-300.0,0.00021672,2]
[395006542,1764313845366,-300.0,0.00021673,2]
[395006543,1764313845377,-300.0,0.00021677,2]
[395006544,1764313845387,-300.0,0.00021682,2]
[395006545,1764313845396,-300.0,0.00021694,2]
[395006546,1764313845406,-300.0,0.0002171,2]
[395006547,1764313845415,-300.0,0.00021715,2]
[395006548,1764313845427,-300.0,0.0002173,2]
[395006550,1764313845436,-300.0,0.00021742,2]
[395006551,1764313845445,-300.0,0.00021742,2]
[395006552,1764313845455,-300.0,0.00021748,2]
[395006553,1764313845464,-216.86,0.00021748,2]
[395006554,1764313845473,-300.0,0.00021758,2]
[395006555,1764313845482,-300.0,0.00021765,2]
[395006556,1764313845491,-300.0,0.00021765,2]
[395006557,1764313845500,-300.0,0.00021791,2]
[395006558,1764313845509,-300.0,0.00021791,2]
[395006559,1764313845519,-300.0,0.00021793,2]
[395006560,1764313845527,-315.11078237,0.00021804,2]
[395006561,1764313845537,-300.0,0.00021808,2]
[395006562,1764313845547,-300.0,0.0002183,2]
[395006563,1764313845556,-300.0,0.00021835,2]
[395006564,1764313845565,-300.0,0.00021851,2]
[395006565,1764313845575,-300.0,0.00021858,2]
[395006566,1764313845584,-300.0,0.00021866,2]
[395006567,1764313845594,-500.0,0.00021874,2]
[395006568,1764313845603,-300.0,0.00021875,2]
[395006569,1764313845613,-300.0,0.00021884,2]
[395006571,1764313845622,-300.0,0.00021887,2]
[395006573,1764313845631,-150.0,0.00021888,2]
[395006574,1764313845641,-227.07,0.00021888,2]
[395006575,1764313845650,-150.0,0.00021888,2]
[395006576,1764313845659,-151.78,0.00021888,2]
[395006577,1764313845668,-300.0,0.00021888,2]
[395006578,1764313845677,-150.0,0.00021888,2]
[395006579,1764313845686,-150.0,0.00021888,2]
[395006580,1764313845695,-150.0,0.00021888,2]
[395006581,1764313845704,-150.0,0.00021888,2]
[395006582,1764313845714,-150.72,0.00021888,2]
[395006583,1764313845723,-151.94,0.00021888,2]
[395006584,1764313845732,-150.95,0.00021888,2]
[395006585,1764313845742,-150.63,0.00021888,2]
[395006586,1764313845751,-150.0,0.00021888,2]
[395006587,1764313845760,-150.0,0.00021888,2]
[395006588,1764313845769,-150.0,0.00021888,2]
[395006589,1764313845780,-150.0,0.00021888,2]
[395006590,1764313845789,-551.04,0.00021888,2]
[395006591,1764313845798,-150.0,0.00021888,2]
[395006592,1764313845807,-150.0,0.00021888,2]
[395006593,1764313845816,-551.66,0.00021888,2]
[395006594,1764313845826,-303.01,0.00021888,2]
[395006595,1764313845835,-551.66,0.00021888,2]
[395006596,1764313845844,-150.0,0.00021888,2]
[395006597,1764313845853,-150.0,0.00021888,2]
[395006598,1764313845862,-563.75,0.00021888,2]
[395006599,1764313845871,-1211.3,0.00021888,2]
[395006600,1764313845880,-1099.56,0.00021888,2]
[395006601,1764313845890,-150.0,0.00021888,2]
[395006602,1764313845899,-301.15,0.00021888,2]
[395006603,1764313845908,-150.0,0.00021888,2]
[395006604,1764313845919,-1212.76,0.00021888,2]
[395006605,1764313845928,-150.0,0.00021888,2]
[395006606,1764313845937,-551.66,0.00021888,2]
[395006607,1764313845946,-150.0,0.00021888,2]
[395006608,1764313845955,-551.66,0.00021888,2]
[395006609,1764313845964,-1212.76,0.00021888,2]
[395006610,1764313845974,-150.0,0.00021888,2]
[395006611,1764313845983,-1250.9,0.00021888,2]
[395006612,1764313845993,-551.66,0.00021888,2]
[395006613,1764313846004,-150.0,0.00021888,2]
[395006614,1764313846013,-551.66,0.00021888,2]
[395006615,1764313846024,-177.82,0.00021888,2]
[395006616,1764313846036,-150.0,0.00021888,2]
[395006617,1764313846047,-1212.76,0.00021888,2]
[395006618,1764313846056,-181.01,0.00021888,2]
[395006619,1764313846066,-551.66,0.00021888,2]
[395006620,1764313846075,-177.78,0.00021888,2]
[395006621,1764313846085,-169.89,0.00021888,2]
[395006622,1764313846094,-150.0,0.00021888,2]
[395006623,1764313846103,-177.82,0.00021888,2]
[395006624,1764313846113,-169.89,0.00021888,2]
[395006625,1764313846123,-173.78,0.00021888,2]
[395006626,1764313846133,-300.0,0.00021888,2]
[395006627,1764313846142,-551.66,0.00021888,2]
[395006628,1764313846152,-2000.0,0.0002189,2]
[395006629,1764313846161,-300.0,0.00021893,2]
[395006630,1764313846170,-300.0,0.00021894,2]
[395006631,1764313846179,-1315.15959818,0.000219,2]
[395006632,1764313846188,-169.87643469,0.000219,2]
[395006633,1764313846198,-3378.91333043,0.00021901,2]
[395006634,1764313846207,-300.0,0.00021906,2]
[395006635,1764313846216,-5000.0,0.00021918,2]
[395006636,1764313846225,-600.0,0.00021918,5]
[395006637,1764313846235,-555.0,0.00021918,2]
[395006639,1764313846244,-823.0,0.00021918,2]
[395006640,1764313846253,-300.0,0.00021963,2]
[395006641,1764313846262,-300.0,0.00021966,2]
[395006642,1764313846271,-150.33140744,0.00021973,2]
[395006643,1764313846281,-672.27403054,0.00021999,2]
[395006644,1764313846292,-500.43241914,0.00021999,2]
[395006645,1764313846303,-190332.18100866,0.00022,2]
[395006647,1764313846701,-500.0,0.00017732,2]
[395006648,1764313846711,-500.0,0.00017869,2]
[395006649,1764313846720,-151.0,0.00017938,2]
[395006650,1764313846729,-500.0,0.00018006,2]
[395006651,1764313846739,-231.47564842,0.00018052,2]
[395006652,1764313846748,-500.0,0.00018143,2]
[395006653,1764313846757,-500.0,0.0001828,2]
[395006654,1764313846767,-500.0,0.00018417,2]
[395006655,1764313846777,-164.67246063,0.00018554,2]
[395006656,1764313846787,-2510.731861,0.00019178,2]
[395006657,1764313846796,-798.02070222,0.00019178,2]
[395006658,1764313846839,-1712.71115878,0.00019178,2]
[395006659,1764313846849,-2510.731861,0.00019178,2]
[395006660,1764313846858,-2510.731861,0.00019178,2]
[395006661,1764313846867,-2510.731861,0.00019178,2]
[395006662,1764313846876,-2510.731861,0.00019178,2]
[395006663,1764313846886,-2510.731861,0.00019178,2]
[395006664,1764313846895,-2510.731861,0.00019178,2]
[395006665,1764313846904,-2510.731861,0.00019178,2]
[395006666,1764313846914,-2510.731861,0.00019178,2]
[395006667,1764313846923,-2510.731864,0.00019178,2]
[395006668,1764313846933,-9667.81899134,0.00022,2]
[395006669,1764313846943,-385.0996829,0.00022,4]
[395006670,1764313846952,-1500.0,0.00022068,2]
[395006671,1764313846961,-3292.0,0.00022142,2]
[395006672,1764313846970,-389.67874519,0.00022152,2]
[395006673,1764313846980,-152.0,0.00022184,4]
[395006674,1764313846989,-600.0,0.00022192,5]
[395006675,1764313846999,-166.66,0.00022261,2]
[395006676,1764313847008,-692.39,0.00022425,2]
[395006677,1764313847018,-318.36618665,0.00022425,7]
[395006678,1764313847027,-1321.0,0.00022465,2]
[395006679,1764313847038,-646.403,0.00022465,2]
[395006680,1764313847047,-145.38810532,0.00022466,5]
[395006681,1764313847062,-454.61189468,0.00022466,5]
[395006682,1764313847072,-1400.0,0.00022548,7]
[395006683,1764313847082,-559.54703279,0.00022548,7]
[395006684,1764313847093,-500.0,0.00022548,7]
[395006685,1764313847102,-525.01082837,0.00022616,2]
[395006686,1764313847114,-71.42231037,0.00022616,2]
[395006687,1764313847123,-500.0,0.00022709,2]
[395006688,1764313847133,-1212.76,0.0002271,2]
[395006689,1764313847143,-1212.76,0.0002271,2]
[395006690,1764313847152,-1212.76,0.0002271,2]
[395006691,1764313847162,-551.66,0.0002271,2]
[395006692,1764313847171,-1212.76,0.0002271,2]
[395006693,1764313847180,-551.66,0.0002271,2]
[395006694,1764313847190,-212.98,0.0002271,2]
[395006695,1764313847199,-1212.76,0.0002271,2]
[395006696,1764313847209,-177.78,0.0002271,2]
[395006697,1764313847218,-1212.76,0.0002271,2]
[395006698,1764313847228,-551.66,0.0002271,2]
[395006699,1764313847238,-177.78,0.0002271,2]
[395006700,1764313847247,-551.66,0.0002271,2]
[395006701,1764313847256,-177.78,0.0002271,2]
[395006702,1764313847265,-169.89,0.0002271,2]
[395006703,1764313847275,-177.78,0.0002271,2]
[395006704,1764313847284,-551.66,0.0002271,2]
[395006705,1764313847294,-610.92198481,0.0002271,2]
[395006706,1764313847343,-169.89,0.00021888,2]
[395006707,1764313847354,-601.83801519,0.0002271,2]
[395006708,1764313847477,-177.78,0.0002271,2]
[395006709,1764313847488,-338.97,0.0002271,2]
[395006710,1764313847498,-545.72,0.0002271,2]
[395006711,1764313847510,-1212.76,0.0002271,2]
[395006712,1764313847520,-169.89,0.0002271,2]
[395006713,1764313847529,-177.78,0.0002271,2]
[395006714,1764313847539,-169.89,0.0002271,2]
[395006715,1764313847548,-177.78,0.0002271,2]
[395006716,1764313847557,-169.89,0.0002271,2]
[395006717,1764313847566,-177.78,0.0002271,2]
[395006718,1764313847575,-2382.8,0.0002271,2]
[395006719,1764313847585,-169.89,0.0002271,2]
[395006720,1764313847595,-169.89,0.0002271,2]
[395006721,1764313847604,-177.78,0.0002271,2]
[395006722,1764313847613,-177.78,0.0002271,2]
[395006723,1764313847622,-169.89,0.0002271,2]
[395006724,1764313847633,-285.39,0.0002271,2]
[395006725,1764313847642,-169.89,0.0002271,2]
[395006726,1764313847651,-177.78,0.0002271,2]
[395006727,1764313847661,-169.89,0.0002271,2]
[395006728,1764313847670,-177.78,0.0002271,2]
[395006729,1764313847679,-169.89,0.0002271,2]
[395006730,1764313847688,-169.89,0.0002271,2]
[395006731,1764313847700,-341.9,0.0002271,2]
[395006732,1764313847709,-169.89,0.0002271,2]
[395006733,1764313847718,-169.89,0.0002271,2]
[395006734,1764313847727,-169.89,0.0002271,2]
[395006735,1764313847742,-169.89,0.0002271,2]
[395006736,1764313847752,-169.89,0.0002271,2]
[395006737,1764313847761,-219.85696359,0.00022729,2]
[395006738,1764313847770,-600.0,0.0002274,5]
[395006739,1764313847779,-327.4514,0.00022843,2]
[395006740,1764313847789,-1000.0,0.0002286,2]
[395006741,1764313847798,-2116.84343,0.000229,2]
[395006742,1764313847807,-192.0,0.00023,7]
[395006743,1764313847816,-199.16,0.00023012,2]
[395006744,1764313847826,-600.0,0.00023014,5]
[395006745,1764313847835,-152.0,0.00023142,5]
[395006746,1764313847844,-600.0,0.00023288,5]
[395006747,1764313847853,-500.0,0.00023312,2]
[395006748,1764313847863,-328.1,0.00023497,2]
[395006749,1764313847872,-321.34,0.00023499,2]
[395006750,1764313847881,-594.9,0.00023505,2]
[395006751,1764313847890,-1212.01,0.00023505,2]
[395006752,1764313847899,-1212.76,0.00023505,2]
[395006753,1764313847907,-1212.76,0.00023505,2]
[395006754,1764313847918,-1212.76,0.00023505,2]
[395006755,1764313847928,-626.84,0.00023562,5]
[395006756,1764313847938,-1400.0,0.00023644,7]
[395006757,1764313847948,-328.1,0.00023771,2]
[395006758,1764313847957,-321.34,0.00023773,2]
[395006759,1764313847967,-600.01,0.00023836,5]
[395006760,1764313847976,-1152.0,0.00023944,2]
[395006761,1764313847987,-295.25088699,0.0002399,2]
[395006762,1764313847996,-336.93564399,0.00024,2]
[395006763,1764313848006,-7463.29604825,0.00024,2]
[395006764,1764313848015,-328.1,0.00024045,2]
[395006765,1764313848025,-321.34,0.00024047,2]
[395006766,1764313848035,-152.0,0.00024101,6]
[395006767,1764313848044,-600.0,0.0002411,5]
[395006768,1764313848053,-177.78,0.000243,2]
[395006769,1764313848063,-177.78,0.000243,2]
[395006770,1764313848073,-4609.0,0.00024311,2]
[395006771,1764313848082,-321.36,0.00024321,2]
[395006772,1764313848091,-300.0,0.00024394,2]
[395006773,1764313848101,-3378.91333043,0.00024401,2]
[395006774,1764313848111,-692.39,0.00024464,2]
[395006775,1764313848120,-305.8551633,0.00024531,2]
[395006776,1764313848129,-2000.0,0.00024535,2]
[395006777,1764313848138,-219.85696359,0.00024558,2]
[395006778,1764313848148,-1544.0452625,0.00024658,2]
[395006779,1764313848158,-1702.0,0.00024658,2]
[395006780,1764313848167,-1702.0,0.00024658,2]
[395006781,1764313848176,-1702.0,0.00024658,2]
[395006782,1764313848185,-1818.0,0.00024658,2]
[395006783,1764313848195,-1818.0,0.00024658,2]
[395006784,1764313848203,-1818.0,0.00024658,2]
[395006785,1764313848212,-1818.0,0.00024658,2]
[395006786,1764313848222,-1818.0,0.00024658,2]
[395006787,1764313848231,-153.0,0.00024658,2]
[395006788,1764313848240,-153.0,0.00024658,2]
[395006789,1764313848249,-153.0,0.00024658,2]
[395006790,1764313848258,-153.0,0.00024658,2]
[395006791,1764313848268,-153.0,0.00024658,2]
[395006792,1764313848277,-1741.0,0.00024658,2]
[395006793,1764313848286,-1741.0,0.00024658,2]
[395006794,1764313848296,-1741.0,0.00024658,2]
[395006795,1764313848305,-1741.0,0.00024658,2]
[395006796,1764313848315,-1741.0,0.00024658,2]
[395006797,1764313848324,-153.0,0.00024658,2]
[395006798,1764313848333,-153.0,0.00024658,2]
[395006799,1764313848344,-153.0,0.00024658,2]
[395006800,1764313848354,-153.0,0.00024658,2]
[395006801,1764313848363,-290.0,0.00024658,2]
[395006802,1764313848372,-290.0,0.00024658,2]
[395006803,1764313848383,-290.0,0.00024658,2]
[395006804,1764313848392,-290.0,0.00024658,2]
[395006805,1764313848401,-290.0,0.00024658,2]
[395006806,1764313848410,-153.0,0.00024658,2]
[395006807,1764313848419,-153.0,0.00024658,2]
[395006808,1764313848430,-153.0,0.00024658,2]
[395006809,1764313848439,-153.0,0.00024658,2]
[395006810,1764313848448,-153.0,0.00024658,2]
[395006811,1764313848457,-153.0,0.00024658,2]
[395006812,1764313848466,-153.0,0.00024658,2]
[395006813,1764313848475,-153.0,0.00024658,2]
[395006814,1764313848484,-153.0,0.00024658,2]
[395006815,1764313848493,-153.0,0.00024658,2]
[395006816,1764313848503,-153.0,0.00024658,2]
[395006817,1764313848512,-153.0,0.00024658,2]
[395006818,1764313848521,-153.0,0.00024658,2]
[395006819,1764313848530,-153.0,0.00024658,2]
[395006820,1764313848539,-153.0,0.00024658,2]
[395006821,1764313848548,-153.0,0.00024658,2]
[395006822,1764313848557,-153.0,0.00024658,2]
[395006823,1764313848566,-153.0,0.00024658,2]
[395006824,1764313848575,-153.0,0.00024658,2]
[395006825,1764313848584,-153.0,0.00024658,2]
[395006826,1764313848594,-153.0,0.00024658,2]
[395006827,1764313848603,-153.0,0.00024658,2]
[395006828,1764313848612,-153.0,0.00024658,2]
[395006829,1764313848621,-153.0,0.00024658,2]
[395006830,1764313848631,-153.0,0.00024658,2]
[395006831,1764313848640,-811.0,0.00024658,2]
[395006832,1764313848649,-811.0,0.00024658,2]
[395006833,1764313848663,-811.0,0.00024658,2]
[395006834,1764313848672,-811.0,0.00024658,2]
[395006835,1764313848682,-811.0,0.00024658,2]
[395006836,1764313848691,-811.0,0.00024658,2]
[395006837,1764313848700,-811.0,0.00024658,2]
[395006838,1764313848712,-811.0,0.00024658,2]
[395006839,1764313848722,-811.0,0.00024658,2]
[395006840,1764313848731,-811.0,0.00024658,2]
[395006841,1764313848740,-811.0,0.00024658,2]
[395006842,1764313848749,-811.0,0.00024658,2]
[395006843,1764313848758,-811.0,0.00024658,2]
[395006844,1764313848767,-811.0,0.00024658,2]
[395006845,1764313848777,-811.0,0.00024658,2]
[395006846,1764313848786,-811.0,0.00024658,2]
[395006847,1764313848795,-811.0,0.00024658,2]
[395006848,1764313848805,-811.0,0.00024658,2]
[395006849,1764313848814,-811.0,0.00024658,2]
[395006850,1764313848823,-811.0,0.00024658,2]
[395006851,1764313848833,-811.0,0.00024658,2]
[395006852,1764313848842,-811.0,0.00024658,2]
[395006853,1764313848851,-811.0,0.00024658,2]
[395006854,1764313848861,-811.0,0.00024658,2]
[395006855,1764313848870,-811.0,0.00024658,2]
[395006856,1764313848879,-811.0,0.00024658,2]
[395006857,1764313848888,-811.0,0.00024658,2]
[395006858,1764313848897,-811.0,0.00024658,2]
[395006859,1764313848906,-811.0,0.00024658,2]
[395006860,1764313848916,-811.0,0.00024658,2]
[395006861,1764313848925,-811.0,0.00024658,2]
[395006862,1764313848934,-811.0,0.00024658,2]
[395006863,1764313848943,-811.0,0.00024658,2]
[395006864,1764313848952,-811.0,0.00024658,2]
[395006865,1764313848962,-811.0,0.00024658,2]
[395006866,1764313848970,-811.0,0.00024658,2]
[395006867,1764313848979,-811.0,0.00024658,2]
[395006868,1764313848988,-811.0,0.00024658,2]
[395006869,1764313848999,-811.0,0.00024658,2]
[395006870,1764313849013,-811.0,0.00024658,2]
[395006871,1764313849027,-811.0,0.00024658,2]
[395006872,1764313849036,-811.0,0.00024658,2]
[395006873,1764313849045,-811.0,0.00024658,2]
[395006874,1764313849054,-811.0,0.00024658,2]
[395006875,1764313849064,-811.0,0.00024658,2]
[395006876,1764313849073,-811.0,0.00024658,2]
[395006877,1764313849082,-811.0,0.00024658,2]
[395006878,1764313849091,-811.0,0.00024658,2]
[395006879,1764313849101,-811.0,0.00024658,2]
[395006880,1764313849110,-811.0,0.00024658,2]
[395006881,1764313849119,-811.0,0.00024658,2]
[395006882,1764313849128,-811.0,0.00024658,2]
[395006883,1764313849137,-811.0,0.00024658,2]
[395006884,1764313849146,-811.0,0.00024658,2]
[395006885,1764313849155,-1278.0,0.00024658,2]
[395006886,1764313849165,-1278.0,0.00024658,2]
[395006887,1764313849174,-1278.0,0.00024658,2]
[395006888,1764313849183,-1278.0,0.00024658,2]
[395006889,1764313849192,-1278.0,0.00024658,2]
[395006890,1764313849200,-1278.0,0.00024658,2]
[395006891,1764313849209,-1278.0,0.00024658,2]
[395006892,1764313849222,-1278.0,0.00024658,2]
[395006893,1764313849231,-1278.0,0.00024658,2]
[395006894,1764313849239,-1278.0,0.00024658,2]
[395006895,1764313849248,-1278.0,0.00024658,2]
[395006896,1764313849257,-1278.0,0.00024658,2]
[395006897,1764313849267,-1298.0,0.00024658,2]
[395006898,1764313849275,-1298.0,0.00024658,2]
[395006899,1764313849284,-1298.0,0.00024658,2]
[395006900,1764313849293,-1298.0,0.00024658,2]
[395006901,1764313849303,-1298.0,0.00024658,2]
[395006902,1764313849312,-1298.0,0.00024658,2]
[395006903,1764313849321,-1298.0,0.00024658,2]
[395006904,1764313849330,-1298.0,0.00024658,2]
[395006905,1764313849339,-1298.0,0.00024658,2]
[395006906,1764313849353,-1298.0,0.00024658,2]
[395006907,1764313849362,-1000.0,0.00024658,2]
[395006908,1764313849371,-1436.66,0.00024658,2]
[395006909,1764313849380,-151.0,0.00024658,2]
[395006910,1764313849390,-502.66411674,0.00024658,2]
[395006911,1764313849399,-502.66411674,0.00024658,2]
[395006912,1764313849409,-502.66411674,0.00024658,2]
[395006913,1764313849419,-502.66411674,0.00024658,2]
[395006914,1764313849431,-502.66411674,0.00024658,2]
[395006915,1764313849440,-502.66411674,0.00024658,2]
[395006916,1764313849450,-502.66411674,0.00024658,2]
[395006917,1764313849459,-502.66411674,0.00024658,2]
[395006918,1764313849468,-502.66411674,0.00024658,2]
[395006919,1764313849478,-502.66411674,0.00024658,2]
[395006920,1764313849487,-502.66411674,0.00024658,2]
[395006921,1764313849496,-502.66411674,0.00024658,2]
[395006922,1764313849505,-502.66411674,0.00024658,2]
[395006923,1764313849515,-502.66411674,0.00024658,2]
[395006924,1764313849524,-502.66411674,0.00024658,2]
[395006925,1764313849533,-502.66411674,0.00024658,2]
[395006926,1764313849543,-502.66411674,0.00024658,2]
[395006927,1764313849554,-502.66411674,0.00024658,2]
[395006928,1764313849565,-502.66411674,0.00024658,2]
[395006929,1764313849574,-502.66411674,0.00024658,2]
[395006930,1764313849584,-502.66411674,0.00024658,2]
[395006931,1764313849594,-502.66411674,0.00024658,2]
[395006932,1764313849604,-502.66411674,0.00024658,2]
[395006933,1764313849618,-502.66411674,0.00024658,2]
[395006934,1764313849629,-502.66411674,0.00024658,2]
[395006935,1764313849638,-502.66411674,0.00024658,2]
[395006936,1764313849647,-502.66411674,0.00024658,2]
[395006937,1764313849656,-502.66411674,0.00024658,2]
[395006938,1764313849666,-502.66411674,0.00024658,2]
[395006939,1764313849675,-502.66411674,0.00024658,2]
[395006940,1764313849685,-502.66411674,0.00024658,2]
[395006941,1764313849695,-502.66411674,0.00024658,2]
[395006942,1764313849704,-502.66411674,0.00024658,2]
[395006943,1764313849713,-502.66411674,0.00024658,2]
[395006944,1764313849723,-502.66411674,0.00024658,2]
[395006945,1764313849732,-502.66411674,0.00024658,2]
[395006946,1764313849743,-502.66411674,0.00024658,2]
[395006947,1764313849753,-502.66411674,0.00024658,2]
[395006948,1764313849763,-502.66411674,0.00024658,2]
[395006949,1764313849772,-502.66411674,0.00024658,2]
[395006950,1764313849782,-502.66411674,0.00024658,2]
[395006951,1764313849792,-502.66411674,0.00024658,2]
[395006952,1764313849804,-502.66411674,0.00024658,2]
[395006953,1764313849818,-298.22385184,0.00024658,2]
[395006954,1764313849834,-204.4402649,0.00024658,2]
[395006955,1764313849843,-110.8747351,0.00024658,2]
[395006956,1764313849854,-391.78938164,0.00024658,2]
[395006957,1764313849863,-41.23910794,0.00024658,2]
[395006958,1764313849874,-362.5,0.00024658,2]
[395006959,1764313849886,-98.9250088,0.00024658,2]
[395006960,1764313849895,-191.9309912,0.00024658,2]
[395006961,1764313849906,-310.73312554,0.00024658,2]
[395006962,1764313849915,-113.82687449,0.00024658,2]
[395006963,1764313849927,-388.83724225,0.00024658,2]
[395006964,1764313849936,-502.66411674,0.00024658,2]
[395006965,1764313849946,-471.57748044,0.00024658,2]
[395006966,1764314162147,166.53,0.00025,120]
[395006968,1764314739277,-3316325.44091837,0.00042072,7]
[395006969,1764314739303,-1621915.24308846,0.00042072,7]
[395006970,1764314739329,-61759.31599317,0.00042072,7]
[395006971,1764314753645,-2061346.89260509,0.00042072,7]
[395006972,1764314753672,-2086877.60436464,0.00042072,7]
[395006973,1764314753697,-851775.50303027,0.00042072,7]
[395006979,1764315031932,-300.0,0.00016199,2]
[395006981,1764315031942,-1200.0,0.00016199,2]
[395006982,1764315031952,-1477.23964399,0.000162,5]
[395006987,1764315032039,-821.9387104,0.000162,5]
[395006988,1764315032051,-8749.7604819,0.000162,5]
[395006989,1764315032130,-3944.841207,0.000162,5]
[395006990,1764315032142,-286.11200438,0.000162,5]
[395006996,1764315038161,-7603.66795233,0.000162,5]
[395006997,1764315038172,-250.0,0.00016473,2]
[395006998,1764315038182,-2751.0,0.00016559,2]
[395006999,1764315038196,-462.1884,0.00016614,2]
[395007000,1764315038206,-8550.96,0.0001667,2]
[395007001,1764315038216,-337.16992201,0.00016712,2]
[395007002,1764315038226,-150.0,0.00016765,2]
[395007003,1764315038238,-1747.29070483,0.000169,2]
[395007004,1764315038248,-301.81390396,0.000169,2]
[395007006,1764315038258,-219.8569636,0.000169,2]
[395007008,1764315038270,-2379.50726236,0.000169,2]
[395007010,1764315038279,-3762.79959073,0.000169,2]
[395007012,1764315038288,-785.20702369,0.000169,2]
[395007014,1764315038298,-2710.04660281,0.000169,2]
[395007016,1764315038307,-1184.78196217,0.000169,2]
[395007018,1764315038316,-250.82763139,0.000169,2]
[395007020,1764315038326,-4996.57305402,0.00016911,2]
[395007067,1764315040087,-1054.51346846,0.00016911,2]
[395007068,1764315040106,-440.03012073,0.00016911,2]
[395007069,1764315040125,-538.02104867,0.00016911,2]
[395007070,1764315040137,-3030.275,0.00016911,2]
[395007071,1764315040221,-16971.89395156,0.00016911,2]
[395007072,1764315040231,-500.0,0.00016956,2]
[395007073,1764315040240,-500.0,0.00016973,2]
[395007074,1764315040249,-500.0,0.00016973,2]
[395007075,1764315040259,-471.99204975,0.00016973,2]
[395007076,1764315040270,-196.83392466,0.0001699,2]
[395007077,1764315040279,-196.83392466,0.0001699,2]
[395007078,1764315040288,-163.98,0.0001699,2]
[395007079,1764315040297,-284.32992244,0.0001699,2]
[395007080,1764315040307,-300.0,0.00016999,2]
[395007081,1764315040316,-199.19879029,0.00016999,2]
[395007082,1764315040326,-463.35456518,0.00016999,2]
[395007083,1764315040336,-244.79647996,0.00016999,2]
[395007084,1764315040346,-500.0,0.00016999,2]
[395007085,1764315040355,-500.0,0.00016999,2]
[395007086,1764315040364,-214.99233566,0.00016999,2]
[395007087,1764315040373,-74598.47041295,0.00017,2]
[395007088,1764315040383,-901132.23779263,0.00017,2]
[395007089,1764315040395,-18969.168089,0.00017,2]
[395007090,1764315040463,-14512.1024797,0.00017,2]
[395007097,1764315045708,-5522.0,0.00017,2]
[395007110,1764315808374,866.53,0.00013699,2]
[395007111,1764315908290,158.93622439,0.00015288,2]
[395007112,1764315909464,247.83814987,0.00015288,2]
[395007113,1764315909552,150.0,0.00015288,2]
[395007114,1764315916629,151.28767977,0.00015288,2]
[395007115,1764315916735,150.0,0.00015288,2]